{"text_format":"1","workbook":"xlsx","n_sheets":3,"sheets":["Formato","Hoja1","Hoja2"],"not_rendered":{"charts":0,"images":2,"macros":1,"external_links":0,"defined_names":0,"comments":1,"pivot_tables":0},"unopened":[],"bounds":{"document_bytes":16777216,"sheet_cells":100000,"rows_first":2000,"rows_last":500,"rows_between":2000,"halvings":0,"cell_chars":16384,"cell_head_chars":4096},"cells_cut":0,"cells_raw":0,"read":"whole","date_system":"1900"}

{"sheet":"Formato","index":0,"n_rows":43,"n_cols":45,"rows_kept":43,"cut":false,"hidden":false,"merged":[[31,0,32,1],[31,2,32,8],[31,9,32,10],[32,13,32,14],[31,13,31,14],[36,20,38,21],[36,22,38,22],[36,18,38,19],[38,13,38,17],[36,13,37,17],[33,0,33,22],[38,4,38,12],[32,15,32,16],[32,17,32,22],[20,9,20,11],[9,0,9,3],[9,5,9,8],[9,9,9,11],[9,12,9,14],[11,0,11,3],[12,0,12,3],[13,0,13,3],[14,0,14,3],[11,5,15,22],[15,0,15,3],[18,0,18,1],[16,0,16,8],[17,2,17,3],[18,2,18,3],[17,4,17,8],[18,4,18,8],[17,9,17,11],[18,9,18,11],[16,9,16,22],[17,21,20,22],[17,12,17,14],[18,12,18,14],[19,12,19,14],[22,11,22,13],[22,19,22,22],[22,17,22,18],[22,14,22,16],[27,0,27,22],[22,0,22,1],[23,0,26,1],[23,2,26,3],[21,0,21,8],[21,9,21,22],[25,9,26,11],[25,12,26,22],[0,5,2,18],[3,5,5,18],[8,0,8,3],[7,16,7,19],[7,20,7,22],[8,5,8,8],[30,0,30,22],[29,0,29,1],[29,5,29,7],[29,16,29,18],[29,19,29,22],[28,15,28,17],[28,0,28,2],[23,9,24,10],[23,11,24,13],[23,14,24,16],[19,0,19,8],[20,0,20,1],[20,4,20,8],[19,9,19,11],[8,9,8,11],[8,12,8,14],[8,15,8,17],[6,0,6,22],[40,16,40,21],[7,0,7,3],[7,4,7,6],[7,7,7,9],[7,10,7,11],[7,12,7,15],[8,18,8,22],[9,18,9,22],[10,5,10,22],[10,0,10,4],[29,13,29,14],[29,8,29,12],[28,18,28,19],[28,20,28,22],[22,9,22,10],[22,2,22,3],[22,5,22,8],[23,4,26,4],[23,5,26,8],[28,5,28,12],[23,17,24,18],[23,19,24,22],[9,15,9,17],[17,0,17,1],[20,12,20,14],[17,15,17,17],[18,15,18,17],[19,15,19,17],[20,15,20,17],[17,18,17,20],[18,18,18,20],[19,18,19,20],[20,18,20,20],[41,16,41,21],[41,0,41,4],[0,19,5,22],[42,0,42,1],[40,7,40,14],[37,0,37,1],[38,2,38,3],[38,0,38,1],[39,0,39,22],[31,11,32,12],[36,2,37,3],[36,4,37,12],[36,0,36,1],[35,0,35,22],[31,15,31,16],[31,17,31,22],[34,0,34,9],[34,10,34,12],[42,4,42,22],[40,5,40,6],[41,5,41,6],[40,0,40,4],[34,13,34,22],[41,7,41,14]]}
[null,null,null,null,null,"FORMATO: UNIFICADO SOLICITUD DE PAGO CONTRATOS DE PRESTACIÓN DE SERVICIOS"]
[]
[]
[null,null,null,null,null,"PROCESO: GESTIÓN FINANCIERA                                                                                                                                                                                                                                                                                                                                                VERSIÓN:2.0,FECHA:27/06/2023,CÓDIGO:FRA-F-47"]
[]
[]
["1. INFORMACIÓN GENERAL"]
[null,null,null,null,"CONTRATO No.",null,null,null,null,null,"DE",null,null,null,null,null,"ENTIDAD:"]
["NOMBRE DEL CONTRATISTA",null,null,null,"TIPO DE DOCUMENTO","No. DOCUMENTO",null,null,null,"FECHA DE SUSCRIPCIÓN",null,null,"FECHA DE INICIO",null,null,"FECHA DE FINALIZACIÓN",null,null,"DEPENDENCIA"]
[]
["INFORMACIÓN TRIBUTARIA",null,null,null,null,"OBJETO DEL CONTRATO"]
["Es responsable de IVA?"]
["Es declarante de Renta?"]
["Es facturador Electrónico"]
["Es régimen simple de tributación?"]
["Es pensionado?"]
["2. INFORMACIÓN CUENTA BANCARIA",null,null,null,null,null,null,null,null,"4. REGISTRO(S) PRESUPUESTAL(ES)"]
["Tipo de cuenta",null,"Banco",null,"No. de Cuenta",null,null,null,null,"Registro Presupuestal No.",null,null,null,null,null,"Valor a afectar para este pago",null,null,null,null,null,{"$f":"IF(T24=0,\"\",IF(T24<>AS18,\"POR FAVOR VERIFICAR LOS VALORES QUE ESTÁ AFECTANDO EL RP PARA ESTE PAGO (VALOR DEBE SER IGUAL AL COBRO DEL MES, PUNTO 6)\",\"\"))","v":""},null,null,null,null,null,null,null,null,null,null,null,null,null,null,null,null,null,null,null,null,null,null,{"$f":"+SUM(S18:U21)","v":0}]
[null,null,null,null,null,null,null,null,null,"Registro Presupuestal No.",null,null,null,null,null,"Valor a afectar para este pago"]
["3. PAGO AUTORIZADO",null,null,null,null,null,null,null,null,"Registro Presupuestal No.",null,null,null,null,null,"Valor a afectar para este pago"]
[null,null,"DE",null,"PAGOS CONTRACTUALES",null,null,null,null,"Registro Presupuestal No.",null,null,null,null,null,"Valor a afectar para este pago",null,null,null,null,null,null,null,null,null,null,null,null,null,null,null,null,{"$f":"IF(T24<>AS18,\"POR FAVOR VERIFICAR LOS VALORES AFECTAR EN RP\",\"\")","v":""}]
["5. PAGO DE SEGURIDAD SOCIAL",null,null,null,null,null,null,null,null,"6. INFORMACIÓN SOPORTE DE PAGO"]
["PLANILLA No.",null,"IBC",null,"Periodo","Fecha de pago",null,null,null,{"$f":"IF(E14=\"SI\",\"FACTURA No.\",\"COBRO No.\")","v":"COBRO No."},null,"Fecha de expedición",null,null,{"$f":"+IF(J23=\"Factura No.\",\"Valor Mes Antes de IVA\",\"Valor Mes\")","v":"Valor Mes"},null,null,{"$f":"+IF(J23=\"Factura No.\",\"IVA\",\"-\")","v":"-"},null,"Total cobro del mes"]
[null,null,{"$f":"IFERROR(O24*Hoja2!$U$3,\" \")","v":0},null,null,null,null,null,null,null,null,null,null,null,{"$f":"IF(E12=\"SI\",(T24/1.19),T24)","v":0},null,null,{"$f":"IF(E12=\"SI\",T24-O24,\"-\")","v":"-"}]
[]
[null,null,null,null,null,null,null,null,null,"VALOR EN LETRAS",null,null,{"$f":"VBAProject.Módulo1.NumLetras(T24,1)","v":""}]
[]
["7. SOLICITUD DE DEDUCCIONES (Artículo 387 del Estatuto Tributario)"]
["MEDICINA PREPAGADA",null,null,"SELECCIONAR",null,"INTERESES POR CRÉDITO DE VIVIENDA",null,null,null,null,null,null,null,"SELECCIONAR",null,"DEPENDIENTES",null,null,"SELECCIONAR"]
["AUTORIZO DESCUENTO Y TRANSFERENCIA DE APORTES ",null,null,"POR VALOR DE",null,"VALOR EN LETRAS",null,null,{"$f":"VBAProject.Módulo1.NumLetras(E30,1)","v":""},null,null,null,null,"ENTIDAD FINANCIERA",null,null,"NÚMERO DE CUENTA"]
["En mi calidad de contratista - Certifico bajo la Gravedad de Juramento, que los documentos soporte del pago de los aportes obligatorios al Sistema General de Seguridad Social corresponden a ingresos provenientes del presente contrato, sujeto a retención en la fuente a título de renta. Decreto 1070 de mayo 28 de 2013 y Ley 1819 del 29 de diciembre de 2016. Así mismo, los valores solicitados para deducción de la base gravable solo los estoy presentando a esta Entidad, no estoy haciendo uso de estas deducciones en ningún otro lado."]
["NOMBRE:",null,{"$f":"+A10","v":0},null,null,null,null,null,null,{"$f":"+E10","v":0},null,{"$f":"+F10","v":0},null,null,null,"CORREO DE NOTIFICACIÓN:"]
[null,null,null,null,null,null,null,null,null,null,null,null,null,"FIRMA",null,"CELULAR"]
["En cumplimiento de la Ley 1581 de 2012 y el Decreto 1377 de 2013 y las demás normas que los modifiquen, adicionen o complementen, le informamos que usted puede conocer la Política de Tratamiento de los Datos Personales del Ministerio de Vivienda, Ciudad y Territorio, a través del siguiente link:   https://www.minvivienda.gov.co/sites/default/files/procesos/0783_2021.pdf  "]
["8. CERTIFICACIÓN DE CUMPLIMIENTO SUPERVISOR",null,null,null,null,null,null,null,null,null,"TIPO DE PAGO",null,null,"SELECCIONAR"]
["En calidad de supervisor del contrato anotado, manifiesto que el contratista cumplió a satisfacción y dentro de los términos contractuales con todas las obligaciones establecidas.\nIgualmente certifico que el contratista dio cumplimiento a lo establecido en las disposiciones legales vigentes sobre el régimen de seguridad social y cumplió con los aportes a salud, pensión y ARL.\nPor lo anterior, autorizo el pago por el valor indicado en el numeral 6 y que corresponde al contrato informado en el numeral 1. El desembolso se debe realizar a la cuenta bancaria indicada en el numeral 2 del presente documento"]
[null,null,"NOMBRE:",null,null,null,null,null,null,null,null,null,null,null,null,null,null,null,"FECHA"]
[]
[null,null,"CARGO",null,null,null,null,null,null,null,null,null,null,"FIRMA"]
["9. ANEXOS PRESENTADOS CON LA CUENTA"]
["FACTURA",null,null,null,null,{"$f":"IF(E14=\"SI\",\"SI\",\"NO\")","v":"NO"},null,"COPIA DEL CONTRATO",null,null,null,null,null,null,null,{"$f":"IF(N35=\"PRIMER PAGO\",\"SI\",\"NO\")","v":"NO"},"SOPORTE APORTE CUENTAS AFC/AVP",null,null,null,null,null,{"$f":"IF(OR(C30=\"AVP\",C30=\"AFC\"),\"SI\",\"NO\")","v":"NO"}]
["SOPORTE DE PAGO DE LOS APORTES OBLIGATORIOSA SALUD Y PENSIÓN",null,null,null,null,{"$f":"IF(OR(A24>0,A24=\"CERTIFICACIÓN\"),\"SI\",\"NO\")","v":"NO"},null,"ACTA DE INICIO/ACTA DE TERMINACIÓN ANTICIPADA",null,null,null,null,null,null,null,{"$f":"IF(OR(N35=\"PRIMER PAGO\",Formato!N35=\"ÚLTIMO PAGO POR TERMINACIÓN ANTICIPADA O CESIÓN\"),\"SI\",\"NO\")","v":"NO"},"ACTA DE SUSPENSIÓN/ACTA DE REINICIO/CESIÓN",null,null,null,null,null,{"$f":"IF(OR(N35=\"PAGO PARCIAL POR SUSPENSIÓN O REINICIO DEL CONTRATO\",N35=\"PRIMER PAGO POR CONTRATO RECIBIDO EN CESIÓN \"),\"SI\",\"NO\")","v":"NO"}]
["OTROS",null,"NO","CUAL?"]

{"sheet":"Hoja1","index":1,"n_rows":0,"n_cols":0,"rows_kept":0,"cut":false,"hidden":true,"merged":[]}

{"sheet":"Hoja2","index":2,"n_rows":47,"n_cols":21,"rows_kept":47,"cut":false,"hidden":true,"merged":[]}
[]
[null,"Listas","Entidad","Tipo de documento","Tipo de cuenta","No. de pago","Pgos contractuales","Periodo","Documento","IVA","AVP","AFC","TIPO DE PAGO","SI/NO",null,null,null,null,"DEPENDENCIAS",null,"PORCENTAJE"]
[null,null,null,"C.C",null,null,null,null,"Seleccionar",null,"Seleccionar","Seleccionar","SELECCIONAR","SELECCIONAR",null,null,null,null,"DESPACHO DE LA MINISTRA",null,0.4]
[null,null,"MINVIVIENDA","C.E","AHORROS",1,1,"ENERO","Cobro No.",0.19,"AFC",null,"PRIMER PAGO","SI",null,null,null,null,"DESPACHO DEL VICEMINISTRODE AGUA Y SANEAMIENTO BÁSICO"]
[null,null,"FONVIVIENDA",null,"CORRIENTE",2,2,"FEBRERO","Factura No.",1,"AVP","AFC","PAGO DE AVANCE","NO",null,null,null,null,"DESPACHO DEL VICEMINISTRO DE VIVIENDA"]
[null,null,null,null,null,3,3,"MARZO",null,null,null,null,"PAGO FINAL","ENTREGADO",null,null,null,null,"SECRETARÍA GENERAL"]
[null,null,null,null,null,4,4,"ABRIL",null,null,null,null,"ÚLTIMO PAGO POR TERMINACIÓN ANTICIPADA O CESIÓN",null,null,null,null,null,"DIRECCIÓN DE ESPACIO URBANO Y TERRITORIAL"]
[null,null,null,null,null,5,5,"MAYO",null,null,null,null,"PRIMER PAGO POR CONTRATO RECIBIDO EN CESIÓN ",null,null,null,null,null,"DIRECCIÓN DE INFRAESTRUCTURA Y DESARROLLO EMPRESARIAL"]
[null,null,null,null,null,6,6,"JUNIO",null,null,null,null,"PAGO PARCIAL POR SUSPENSIÓN O REINICIO DEL CONTRATO",null,null,null,null,null,"DIRECCIÓN DE INVERSIONES EN VIVIENDA DE INTERÉS SOCIAL"]
[null,null,null,null,null,7,7,"JULIO",null,null,null,null,null,null,null,null,null,null,"DIRECCIÓN DE POLÍTICA Y REGULACIÓN"]
[null,null,null,null,null,8,8,"AGOSTO",null,null,null,null,null,null,null,null,null,null,"DIRECCIÓN DE VIVIENDA RURAL"]
[null,null,null,null,null,9,9,"SEPTIEMBRE",null,null,null,null,null,null,null,null,null,null,"DIRECCIÓN DEL SISTEMA HABITACIONAL"]
[null,null,null,null,null,10,10,"OCTUBRE",null,null,null,null,null,null,null,null,null,null,"GRUPO DE ACCIONES CONSTITUCIONALES"]
[null,null,null,null,null,11,11,"NOVIEMBRE",null,null,null,null,null,null,null,null,null,null,"GRUPO DE APOYO TECNOLÓGICO"]
[null,null,null,null,null,12,12,"DICIEMBRE",null,null,null,null,null,null,null,null,null,null,"GRUPO DE ATENCIÓN AL USUARIO Y ARCHIVO"]
[null,null,null,null,null,13,13,null,null,null,null,null,null,null,null,null,null,null,"GRUPO DE COMUNICACIONES ESTRATEGICAS"]
[null,null,null,null,null,14,14,null,null,null,null,null,null,null,null,null,null,null,"GRUPO DE CONCEPTOS"]
[null,null,null,null,null,15,15,null,null,null,null,null,null,null,null,null,null,null,"GRUPO DE CONTRATOS"]
[null,null,null,null,null,null,null,null,null,null,null,null,null,null,null,null,null,null,"GRUPO DE CONTROL INTERNO DISCIPLINARIO"]
[null,null,null,null,null,null,null,null,null,null,null,null,null,null,null,null,null,null,"GRUPO DE DESARROLLO SOSTENIBLE"]
[null,null,null,null,null,null,null,null,null,null,null,null,null,null,null,null,null,null,"GRUPO DE EVALUACIÓN DE PROYECTOS"]
[null,null,null,null,null,null,null,null,null,null,null,null,null,null,null,null,null,null,"GRUPO DE INNOVACIÓN Y MEJORAMIENTO INSTITUCIONAL"]
[null,null,null,null,null,null,null,null,null,null,null,null,null,null,null,null,null,null,"GRUPO DE PLANEACIÓN Y SEGUIMIENTO"]
[null,null,null,null,null,null,null,null,null,null,null,null,null,null,null,null,null,null,"GRUPO DE POLÍTICA SECTORIAL"]
[null,null,null,null,null,null,null,null,null,null,null,null,null,null,null,null,null,null,"GRUPO DE PRESUPUESTO Y PROYECTOS DE INVERSIÓN"]
[null,null,null,null,null,null,null,null,null,null,null,null,null,null,null,null,null,null,"GRUPO DE PROCESOS JUDICIALES"]
[null,null,null,null,null,null,null,null,null,null,null,null,null,null,null,null,null,null,"GRUPO DE PROCESOS SANCIONATORIOS Y ACOMPAÑAMIENTO SOCIAL"]
[null,null,null,null,null,null,null,null,null,null,null,null,null,null,null,null,null,null,"GRUPO DE RECURSOS FÍSICOS"]
[null,null,null,null,null,null,null,null,null,null,null,null,null,null,null,null,null,null,"GRUPO DE TALENTO HUMANO"]
[null,null,null,null,null,null,null,null,null,null,null,null,null,null,null,null,null,null,"GRUPO DE TITULACIÓN Y SANEAMIENTO PREDIAL"]
[null,null,null,null,null,null,null,null,null,null,null,null,null,null,null,null,null,null,"GRUPO DEL MONITOREO DEL SISTEMA GENERAL DE PARTICIPACIONES DE AGUA POTABLE Y SANEAMIENTO BASICO"]
[null,null,null,null,null,null,null,null,null,null,null,null,null,null,null,null,null,null,"OFICINA ASESORA DE PLANEACIÓN"]
[null,null,null,null,null,null,null,null,null,null,null,null,null,null,null,null,null,null,"OFICINA ASESORA JURÍDICA"]
[null,null,null,null,null,null,null,null,null,null,null,null,null,null,null,null,null,null,"OFICINA DE CONTROL INTERNO"]
[null,null,null,null,null,null,null,null,null,null,null,null,null,null,null,null,null,null,"OFICINA DE TECNOLOGÍAS DE LA INFORMACIÓN Y LAS COMUNICACIONES"]
[null,null,null,null,null,null,null,null,null,null,null,null,null,null,null,null,null,null,"SUBDIRECCIÓN DE ACOMPAÑAMIENTO Y EVALUACIÓN"]
[null,null,null,null,null,null,null,null,null,null,null,null,null,null,null,null,null,null,"SUBDIRECCIÓN DE ASISTENCIA TÉCNICA \nY OPERACIONES URBANAS INTEGRALES"]
[null,null,null,null,null,null,null,null,null,null,null,null,null,null,null,null,null,null,"SUBDIRECCIÓN DE DESARROLLO EMPRESARIAL"]
[null,null,null,null,null,null,null,null,null,null,null,null,null,null,null,null,null,null,"SUBDIRECCIÓN DE FINANZAS Y PRESUPUESTO"]
[null,null,null,null,null,null,null,null,null,null,null,null,null,null,null,null,null,null,"SUBDIRECCIÓN DE POLÍTICA Y APOYO TÉCNICO"]
[null,null,null,null,null,null,null,null,null,null,null,null,null,null,null,null,null,null,"SUBDIRECCIÓN DE POLÍTICAS DE \nDESARROLLO URBANO  Y TERRITORIAL"]
[null,null,null,null,null,null,null,null,null,null,null,null,null,null,null,null,null,null,"SUBDIRECCIÓN DE PROGRAMAS"]
[null,null,null,null,null,null,null,null,null,null,null,null,null,null,null,null,null,null,"SUBDIRECCIÓN DE PROMOCIÓN Y APOYO TÉCNICO"]
[null,null,null,null,null,null,null,null,null,null,null,null,null,null,null,null,null,null,"SUBDIRECCIÓN DE PROYECTOS"]
[null,null,null,null,null,null,null,null,null,null,null,null,null,null,null,null,null,null,"SUBDIRECCIÓN DE SERVICIOS ADMINISTRATIVOS"]
[null,null,null,null,null,null,null,null,null,null,null,null,null,null,null,null,null,null,"SUBDIRECCIÓN DE SUBSIDIO FAMILIAR DE VIVIENDA"]
[null,null,null,null,null,null,null,null,null,null,null,null,null,null,null,null,null,null,"SUBDIRECCIÓN DE SUBSIDIO Y EJECUCIÓN DE VIVIENDA RURAL"]